bitfinex/quotes_SOLUSD_20240714
["timestamp","ask_amount","ask_price","bid_price","bid_amount"]
[1721000519696,51.7157,148.91,148.79,7.0401]
[1721000519862,45.0,148.91,148.79,7.0401]
[1721000520062,45.0,148.91,148.8,1.3437123]
[1721000521191,45.0,148.91,148.8,46.3437123]
[1721000521793,45.0,148.91,148.81,20.0]
[1721000521995,45.0,148.91,148.82,1.34353914]
[1721000522291,45.0,148.91,148.81,20.0]
[1721000528279,15.2,148.87,148.82,15.2]
[1721000528485,15.2,148.87,148.83,20.0]
[1721000528876,45.0,148.91,148.83,21.34357074]
[1721000529185,15.2,148.87,148.83,36.54357074]
[1721000529381,45.0,148.91,148.83,36.54357074]
[1721000529382,45.0,148.91,148.83,35.2]
[1721000529587,15.2,148.88,148.84,15.2]
[1721000530084,20.0,148.92,148.84,15.2]
[1721000530277,15.2,148.9,148.86,15.2]
[1721000530666,15.2,148.89,148.85,21.5443]
[1721000530862,15.2,148.89,148.85,6.3443]
[1721000531280,15.2,148.88,148.83,35.2]
[1721000532295,15.2,148.88,148.83,20.0]
[1721000532598,15.2,148.87,148.82,35.2]
[1721000533391,15.2,148.87,148.82,20.0]
[1721000533582,15.2,148.87,148.82,35.2]
[1721000534879,15.2,148.88,148.84,15.2]
[1721000535085,20.0,148.93,148.84,15.2]
[1721000535279,15.2,148.89,148.84,15.2]
[1721000535481,45.0,148.92,148.85,15.2]
[1721000535874,15.2,148.9,148.85,15.2]
[1721000536073,15.2,148.89,148.85,15.2]
[1721000536685,15.2,148.88,148.83,15.2]
[1721000536894,15.2,148.88,148.84,20.0]
[1721000537700,15.2,148.88,148.83,15.2]
[1721000537884,15.2,148.88,148.84,20.0]
[1721000538474,15.2,148.89,148.84,35.2]
[1721000538685,15.2,148.9,148.85,15.2]
[1721000539202,15.2,148.89,148.84,20.0]
[1721000539381,15.2,148.89,148.84,15.2]
[1721000540475,15.2,148.89,148.82,20.0]
[1721000540703,15.2,148.89,148.84,15.2]
[1721000541211,15.2,148.88,148.82,20.0]
[1721000541377,15.2,148.88,148.83,15.2]
[1721000541580,15.2,148.88,148.84,20.0]
[1721000542184,15.2,148.88,148.84,35.2]
[1721000542390,15.2,148.88,148.84,36.54357434]
[1721000542595,45.0,148.92,148.84,35.2]
[1721000542804,15.2,148.88,148.84,35.2]
[1721000544100,15.2,148.87,148.84,20.0]
[1721000544485,15.2,148.87,148.82,35.2]
[1721000545292,15.2,148.87,148.82,20.0]
[1721000545515,15.2,148.87,148.82,35.2]
[1721000546094,15.2,148.88,148.83,15.2]
[1721000548519,15.2,148.87,148.82,35.2]
[1721000549023,15.2,148.87,148.83,1.34370259]
[1721000549316,15.2,148.88,148.83,15.2]
[1721000549814,15.2,148.87,148.82,35.2]
[1721000550513,51.715,148.92,148.82,35.2]
[1721000550725,15.2,148.89,148.84,15.2]
[1721000551022,15.2,148.9,148.86,15.2]
[1721000552824,16.8565082,148.94,148.86,15.2]
[1721000553001,15.2,148.9,148.86,15.2]
[1721000554627,65.0,148.93,148.86,15.2]
[1721000554628,15.2,148.91,148.86,15.2]
[1721000554808,3.14139162,148.9,148.86,15.2]
[1721000555012,15.2,148.91,148.86,15.2]
[1721000556202,15.2,148.9,148.82,22.20197565]
[1721000556407,15.2,148.9,148.85,15.2]
[1721000558624,20.0,148.93,148.86,15.2]
[1721000558813,15.2,148.9,148.86,15.2]
[1721000559703,15.2,148.91,148.86,15.2]
[1721000560305,15.2,148.9,148.86,15.2]
[1721000562325,15.2,148.9,148.83,45.0]
[1721000562506,15.2,148.9,148.86,15.2]
[1721000562706,15.2,148.9,148.85,15.2]
[1721000563412,15.2,148.89,148.85,15.2]
[1721000564124,15.2,148.89,148.84,20.0]
[1721000564323,15.2,148.89,148.85,15.2]
[1721000564624,15.2,148.88,148.84,15.2]
[1721000564832,15.2,148.88,148.85,20.0]
[1721000565026,15.2,148.89,148.85,20.0]
[1721000567101,15.2,148.9,148.85,35.2]
[1721000567306,20.0,148.93,148.85,35.2]
[1721000567532,15.2,148.91,148.86,15.2]
[1721000567729,3.14140318,148.9,148.86,15.2]
[1721000567913,15.2,148.91,148.86,15.2]
[1721000570013,15.2,148.91,148.85,20.0]
[1721000570014,18.34143256,148.9,148.85,20.0]
[1721000570311,15.2,148.89,148.84,35.2]
[1721000572437,15.2,148.9,148.85,15.2]
[1721000573027,15.2,148.89,148.84,20.0]
[1721000573226,15.2,148.88,148.84,20.0]
[1721000574442,15.2,148.87,148.84,20.0]
[1721000574936,15.2,148.87,148.83,7.00246512]
[1721000575529,15.2,148.86,148.83,7.00246512]
[1721000575839,15.1441,148.89,148.83,7.00246512]
[1721000576037,15.2,148.86,148.83,7.00246512]
[1721000576224,15.2,148.87,148.83,7.00246512]
[1721000578122,15.2,148.86,148.83,7.00246512]
[1721000580942,15.2,148.87,148.83,22.20246512]
[1721000581540,15.1441,148.89,148.84,15.2]
[1721000581741,15.2,148.88,148.84,15.2]
[1721000582046,15.1441,148.89,148.83,22.20246512]
[1721000582246,15.2,148.88,148.83,22.20246512]
[1721000583228,15.2,148.87,148.83,22.20246512]
[1721000583542,15.2,148.87,148.83,7.00246512]
[1721000583851,15.2,148.86,148.83,7.00246512]
[1721000584058,15.2,148.87,148.83,7.00246512]
[1721000584467,15.2,148.86,148.83,7.00246512]
[1721000585036,15.1441,148.89,148.83,7.00246512]
[1721000585267,15.2,148.87,148.83,7.00246512]
[1721000587246,15.2,148.86,148.83,7.00246512]
[1721000587442,32.07182219,148.95,148.85,15.2]
[1721000587632,15.2,148.91,148.86,16.54335279]
[1721000587831,38.78552219,148.95,148.86,15.2]
[1721000588041,15.2,148.92,148.87,15.2]
[1721000588333,15.2,148.91,148.87,15.2]
[1721000590860,8.5205082,148.94,148.87,15.2]
[1721000591061,15.2,148.92,148.87,15.2]
[1721000591952,15.2,148.92,148.88,15.2]
[1721000594261,1.8064082,148.94,148.89,15.2]
[1721000594449,18.34102265,148.93,148.89,15.2]
[1721000594650,3.14102265,148.92,148.89,15.2]
[1721000594838,15.2,148.93,148.89,15.2]
[1721000595041,3.14103139,148.92,148.88,15.2]
[1721000595237,15.2,148.93,148.88,15.2]
[1721000595543,18.34113559,148.92,148.88,15.2]
[1721000595748,15.2,148.92,148.88,15.2]
[1721000597333,15.2,148.92,148.87,15.2]
[1721000599960,8.5205082,148.94,148.84,6.9876113]
[1721000600158,15.2,148.9,148.86,15.2]
[1721000601068,15.2,148.9,148.84,6.9876113]
[1721000601271,15.2,148.89,148.85,15.2]
[1721000601443,15.2,148.88,148.84,22.1876113]
[1721000601841,15.2,148.88,148.84,6.9876113]
[1721000602049,15.2,148.88,148.83,15.2]
[1721000602261,15.2,148.89,148.85,15.2]
[1721000602964,15.2,148.89,148.81,13.34298684]
[1721000603272,31.794,148.9,148.85,15.2]
[1721000605075,31.794,148.9,148.81,13.34298684]
[1721000605381,15.2,148.86,148.81,6.99868684]
[1721000605699,15.2,148.85,148.81,6.99868684]
[1721000606061,15.2,148.82,148.81,6.99868684]
[1721000606247,15.2,148.82,148.77,15.2]
[1721000606670,15.2,148.81,148.76,6.9955223]
[1721000606870,15.2,148.81,148.77,15.2]
[1721000608576,16.0515,148.84,148.77,15.2]
[1721000608773,15.2,148.81,148.77,15.2]
[1721000609076,15.2,148.81,148.76,22.1955223]
[1721000610464,15.2,148.8,148.76,6.9955223]
[1721000610691,15.2,148.8,148.76,22.1955223]
[1721000611560,15.2,148.8,148.76,6.9955223]
[1721000612067,6.719,148.83,148.76,6.9955223]
[1721000612068,15.2,148.79,148.76,6.9955223]
[1721000612276,15.2,148.79,148.75,15.2]
[1721000612571,15.2,148.79,148.76,20.0]
[1721000612878,15.2,148.79,148.75,15.2]
[1721000613206,22.7702,148.84,148.76,15.2]
[1721000613207,15.2,148.81,148.76,15.2]
[1721000613360,15.2,148.8,148.76,15.2]
[1721000614076,15.2,148.8,148.74,6.99469153]
[1721000614377,15.2,148.8,148.75,35.2]
[1721000614550,15.2,148.79,148.75,35.2]
[1721000615256,95.2486609,148.89,148.74,6.99469153]
[1721000615257,15.2,148.76,148.74,6.99469153]
[1721000615581,21.6488,148.78,148.69,15.2]
[1721000615761,15.2,148.73,148.69,15.2]
[1721000616655,15.2,148.74,148.7,15.2]
[1721000617076,15.2,148.73,148.69,15.2]
[1721000617277,21.6488,148.78,148.69,15.2]
[1721000617500,15.3212,148.78,148.73,15.2]
[1721000617810,30.5212,148.78,148.74,15.2]
[1721000617982,15.3212,148.78,148.73,15.2]
[1721000618184,30.5212,148.78,148.73,15.2]
[1721000619008,15.3212,148.78,148.73,15.2]
[1721000619196,30.5212,148.78,148.73,15.2]
[1721000619504,30.5212,148.78,148.68,67.79688885]
[1721000619677,15.2,148.77,148.73,15.2]
[1721000620498,30.5212,148.78,148.73,15.2]
[1721000622400,15.2,148.77,148.73,15.2]
[1721000625676,15.2,148.77,148.72,15.2]
[1721000625903,15.3212,148.78,148.72,15.2]
[1721000626104,15.2,148.76,148.71,15.2]
[1721000626485,15.2,148.74,148.69,22.19589534]
[1721000627090,15.2,148.74,148.69,6.99589534]
[1721000627298,15.2,148.74,148.69,22.19589534]
[1721000628409,15.2,148.74,148.69,6.99589534]
[1721000628589,15.2,148.73,148.69,6.99589534]
[1721000628784,13.3401,148.77,148.69,6.99589534]
[1721000628987,15.2,148.73,148.69,6.99589534]
[1721000630308,15.2,148.73,148.69,8.34081004]
[1721000630911,15.2,148.73,148.69,6.99589534]
[1721000631093,6.6183,148.77,148.69,6.99589534]
[1721000631296,15.2,148.74,148.69,22.19589534]
[1721000632705,15.2,148.73,148.69,22.19589534]
[1721000633612,15.2,148.73,148.69,6.99589534]
[1721000634121,15.2,148.73,148.69,22.19589534]
[1721000634290,13.3402,148.77,148.69,6.99589534]
[1721000634593,15.2,148.74,148.69,22.19589534]
[1721000634793,6.6183,148.77,148.69,22.19589534]
[1721000634998,15.2,148.74,148.69,22.19589534]
[1721000635422,6.6183,148.77,148.7,15.2]
[1721000635603,15.2,148.75,148.7,15.2]
[1721000637715,6.6183,148.77,148.69,6.99589534]
[1721000637905,15.2,148.75,148.7,15.2]
[1721000638214,15.2,148.75,148.71,15.2]
[1721000638419,15.2,148.76,148.71,15.2]
[1721000638788,15.3212,148.78,148.72,1.34471174]
[1721000638992,15.2,148.8,148.76,15.2]
[1721000639200,15.7157,148.82,148.77,16.54432686]
[1721000639416,15.7157,148.82,148.78,15.2]
[1721000639591,15.7157,148.82,148.8,15.2]
[1721000639930,15.2,148.84,148.8,15.2]
[1721000640491,15.2,148.85,148.8,15.2]
[1721000640730,15.2,148.85,148.81,15.2]
[1721000640900,15.2,148.84,148.76,6.0364]
[1721000641109,15.2,148.84,148.8,15.2]
[1721000642524,22.4334,148.86,148.76,6.0364]
[1721000642693,15.2,148.82,148.77,20.0]
[1721000642900,6.7187,148.84,148.72,6.0364]
[1721000643099,15.2,148.81,148.76,15.2]
[1721000643318,15.2,148.8,148.72,6.0364]
[1721000643525,15.2,148.79,148.75,15.2]
[1721000643691,15.2,148.79,148.74,15.2]
[1721000644018,60.8,148.82,148.74,15.2]
[1721000644231,15.7157,148.86,148.75,15.2]
[1721000644232,15.2,148.8,148.75,15.2]
[1721000644522,22.4338,148.86,148.76,15.2]
[1721000644725,15.2,148.81,148.77,15.2]
[1721000644894,15.2,148.81,148.76,15.2]
[1721000645522,15.2,148.81,148.72,6.0364]
[1721000645695,15.2,148.81,148.73,20.0]
[1721000645896,15.2,148.81,148.76,15.2]
[1721000647124,15.2,148.8,148.76,15.2]
[1721000647700,15.2,148.8,148.75,15.2]
[1721000647997,15.2,148.81,148.76,15.2]
[1721000648233,6.7182,148.85,148.76,15.2]
[1721000648415,15.2,148.81,148.76,15.2]
[1721000648935,15.2,148.83,148.79,15.2]
[1721000649136,15.7157,148.86,148.8,15.2]
[1721000649442,15.2,148.84,148.8,15.2]
[1721000651329,15.2,148.84,148.75,15.2]
[1721000651525,15.7157,148.86,148.76,20.0]
[1721000651526,15.2,148.83,148.76,20.0]
[1721000651732,15.2,148.83,148.78,15.2]
[1721000652431,15.2,148.83,148.79,15.2]
[1721000652730,15.7157,148.86,148.8,16.54396884]
[1721000653037,15.2,148.84,148.8,15.2]
[1721000654233,15.7157,148.86,148.8,15.2]
[1721000654234,15.2,148.85,148.8,15.2]
[1721000655336,15.2,148.84,148.79,15.2]
[1721000656339,15.2,148.84,148.8,1.34393269]
[1721000656840,15.2,148.84,148.79,15.2]
[1721000657939,15.2,148.84,148.76,20.0]
[1721000658253,15.2,148.83,148.79,15.2]
[1721000659239,15.2,148.83,148.78,15.2]
[1721000659415,15.2,148.83,148.74,20.0]
[1721000659625,15.2,148.82,148.74,20.0]
[1721000659937,15.2,148.82,148.78,15.2]
[1721000660111,15.2,148.82,148.77,15.2]
[1721000660309,6.7183,148.85,148.73,6.99356241]
[1721000660516,15.2,148.82,148.77,15.2]
[1721000661718,15.2,148.81,148.77,15.2]
[1721000662128,15.2,148.81,148.76,15.2]
[1721000663532,15.2,148.81,148.73,6.99356241]
[1721000663533,15.2,148.79,148.73,6.99356241]
[1721000663830,15.2,148.78,148.73,6.99356241]
[1721000664042,15.2,148.78,148.73,22.19356241]
[1721000664232,15.2,148.78,148.73,6.99356241]
[1721000664434,15.2,148.78,148.73,22.19356241]
[1721000664627,15.2,148.79,148.74,15.2]
[1721000664826,15.9657,148.81,148.74,15.2]
[1721000665023,15.2,148.79,148.74,15.2]
[1721000665437,15.2,148.8,148.75,15.2]
[1721000666743,15.2,148.8,148.76,15.2]
[1721000667531,15.2,148.8,148.76,15.1]
[1721000668629,15.2,148.8,148.75,15.2]
[1721000669635,15.2,148.8,148.76,15.2]
[1721000670222,15.2,148.8,148.75,15.2]
[1721000670834,22.6859,148.81,148.73,22.19356241]
[1721000670835,15.2,148.78,148.73,22.19356241]
[1721000671137,15.2,148.78,148.73,15.2]
[1721000671513,15.9657,148.81,148.73,15.2]
[1721000671735,15.2,148.79,148.74,16.54434821]
[1721000672037,15.2,148.79,148.74,15.2]
[1721000675620,15.9657,148.81,148.75,16.54434741]
[1721000675816,31.1657,148.81,148.76,15.2]
[1721000676539,15.9657,148.81,148.76,15.2]
[1721000676723,15.9657,148.81,148.77,15.2]
[1721000677542,15.9657,148.81,148.78,15.2]
[1721000678033,15.2,148.82,148.78,15.2]
[1721000678737,15.2,148.82,148.77,15.2]
[1721000679122,23.1071,148.85,148.77,15.2]
[1721000679443,15.2,148.82,148.77,15.2]
[1721000679634,15.2,148.82,148.78,15.2]
[1721000681338,15.2,148.81,148.77,15.2]
[1721000681514,15.2,148.81,148.76,15.2]
[1721000682717,15.2,148.81,148.77,15.2]
[1721000683143,15.2,148.81,148.73,6.6415]
[1721000683347,15.2,148.81,148.76,15.2]
[1721000685223,15.2,148.81,148.77,1.34425292]
[1721000685430,15.2,148.81,148.77,16.54425292]
[1721000685942,15.2,148.82,148.77,15.2]
[1721000689648,6.7187,148.84,148.73,6.6415]
[1721000689649,15.2,148.81,148.73,6.6415]
[1721000689831,15.2,148.81,148.76,15.2]
[1721000690225,15.2,148.8,148.73,6.6415]
[1721000690428,15.2,148.8,148.75,15.2]
[1721000690650,15.2,148.79,148.75,15.2]
[1721000692939,15.2,148.79,148.74,35.2]
[1721000693128,15.2,148.8,148.75,15.2]
[1721000695051,16.3889,148.85,148.76,15.2]
[1721000695255,15.2,148.8,148.76,15.2]
[1721000696136,23.1072,148.85,148.76,15.2]
[1721000696334,15.2,148.8,148.76,15.2]
[1721000696740,23.1072,148.85,148.76,15.2]
[1721000696741,15.2,148.81,148.76,15.2]
[1721000698353,23.1072,148.85,148.77,15.2]
[1721000698540,15.2,148.82,148.78,15.2]
[1721000699250,15.2,148.8,148.74,20.0]
[1721000699438,15.2,148.8,148.75,15.2]
[1721000699758,16.3889,148.85,148.74,35.2]
[1721000699759,15.2,148.79,148.74,35.2]
[1721000700456,15.2,148.79,148.74,36.5444319]
[1721000700948,16.3889,148.85,148.75,15.2]
[1721000701160,16.3889,148.85,148.74,21.3444319]
[1721000701161,15.2,148.8,148.76,15.2]
[1721000701458,15.2,148.8,148.74,20.0]
[1721000701762,21.9198,148.82,148.74,15.2]
[1721000702060,15.2,148.79,148.74,15.2]
[1721000702638,15.2,148.79,148.72,6.99444535]
[1721000702852,15.2,148.78,148.73,35.2]
[1721000703454,23.3282,148.8,148.72,6.99444535]
[1721000703654,15.2,148.75,148.71,15.2]
[1721000704435,15.2,148.74,148.7,15.2]
[1721000705357,15.2,148.74,148.69,6.3469]
[1721000705358,15.2,148.75,148.71,15.2]
[1721000705564,15.2,148.76,148.71,15.2]
[1721000705750,15.2,148.77,148.72,15.2]
[1721000705932,16.6076,148.8,148.74,15.2]
[1721000706138,15.2,148.78,148.74,15.2]
[1721000706337,15.2,148.79,148.74,15.2]
[1721000707571,16.6076,148.8,148.76,15.2]
[1721000707867,31.8076,148.8,148.76,15.2]
[1721000708048,31.8076,148.8,148.71,2.19126341]
[1721000708251,31.8076,148.8,148.75,15.2]
[1721000708562,15.2,148.79,148.74,15.2]
[1721000708771,15.2,148.78,148.74,15.2]
[1721000708945,16.6076,148.8,148.71,0.8469]
[1721000708946,15.2,148.77,148.71,0.8469]
[1721000709153,15.2,148.77,148.73,15.2]
[1721000710574,16.6076,148.8,148.74,36.5444821]
[1721000710813,15.2,148.79,148.74,35.2]
[1721000711250,15.2,148.78,148.74,20.0]
[1721000711576,15.2,148.78,148.73,15.2]
[1721000711773,15.2,148.78,148.74,36.54442203]
[1721000711978,15.2,148.78,148.74,16.54442203]
[1721000712144,15.2,148.78,148.74,15.2]
[1721000716463,15.2,148.78,148.73,15.2]
[1721000716767,23.328,148.8,148.71,15.2]
[1721000716968,15.2,148.75,148.71,15.2]
[1721000717770,15.2,148.75,148.69,13.34201694]
[1721000717975,15.2,148.75,148.71,15.2]
[1721000718156,15.2,148.76,148.72,20.0]
[1721000719361,15.2,148.75,148.7,15.2]
[1721000720068,15.2,148.76,148.7,1.34473436]
[1721000720373,15.2,148.76,148.71,16.5446998]
[1721000720761,15.2,148.76,148.71,15.2]
[1721000722969,15.2,148.75,148.7,1.34470165]
[1721000723160,15.2,148.75,148.71,15.2]
[1721000723560,15.2,148.75,148.69,13.34201694]
[1721000723766,15.2,148.75,148.7,35.2]
[1721000723968,15.2,148.75,148.7,36.54478229]
[1721000724177,15.2,148.75,148.71,15.2]
[1721000724563,15.2,148.74,148.7,6.9964285]
[1721000724885,15.2,148.74,148.69,15.2]
[1721000725264,15.2,148.74,148.7,16.54485242]
[1721000726471,15.2,148.74,148.7,15.2]
[1721000726965,15.2,148.73,148.67,6.99729486]
[1721000727164,15.2,148.72,148.67,6.99729486]
[1721000727367,15.2,148.71,148.67,22.19729486]
[1721000727570,15.2,148.71,148.67,6.99729486]
[1721000727772,15.2,148.71,148.67,22.19729486]
[1721000728161,31.6935,148.75,148.67,22.19729486]
[1721000728367,15.2,148.72,148.67,22.19729486]
[1721000729260,15.2,148.72,148.68,15.2]
[1721000729687,15.2,148.72,148.67,22.19729486]
[1721000730267,15.2,148.71,148.67,6.99729486]
[1721000730467,84.0164,148.75,148.67,6.99729486]
[1721000730468,15.2,148.68,148.67,6.99729486]
[1721000730674,15.2,148.68,148.59,6.4715]
[1721000730675,15.2,148.68,148.63,15.2]
[1721000730882,15.2,148.68,148.59,7.3184]
[1721000731087,15.2,148.67,148.62,15.2]
[1721000731265,15.2,148.67,148.63,15.2]
[1721000731464,15.2,148.67,148.61,6.99889143]
[1721000731785,15.2,148.67,148.62,15.2]
[1721000731985,15.2,148.67,148.61,6.99889143]
[1721000732278,22.353,148.7,148.61,6.99889143]
[1721000732279,15.2,148.66,148.61,6.99889143]
[1721000732684,15.2,148.65,148.61,22.19889143]
[1721000732988,15.2,148.66,148.61,22.19889143]
[1721000733174,15.2,148.66,148.61,6.99889143]
[1721000733383,15.2,148.66,148.61,22.19889143]
[1721000733769,15.2,148.66,148.62,15.2]
[1721000733971,15.2,148.66,148.61,6.99889143]
[1721000734170,15.2,148.66,148.61,22.19889143]
[1721000734689,15.2,148.66,148.61,6.99889143]
[1721000734985,15.2,148.66,148.61,22.19889143]
[1721000737667,15.2,148.66,148.61,6.99889143]
[1721000737872,15.2,148.66,148.61,22.19889143]
[1721000738667,15.2,148.66,148.61,6.99889143]
[1721000738869,15.2,148.66,148.61,22.19889143]
[1721000739190,15.2,148.66,148.62,1.34548816]
[1721000739775,15.2,148.64,148.61,6.99889143]
[1721000739969,15.2,148.63,148.55,7.2631]
[1721000740175,16.244,148.64,148.58,15.2]
[1721000740385,15.2,148.63,148.59,1.34580282]
[1721000740574,15.2,148.63,148.59,16.54580282]
[1721000740769,15.2,148.63,148.59,15.2]
[1721000742310,15.2,148.63,148.58,15.2]
[1721000742784,15.2,148.63,148.58,16.54580879]
[1721000743682,15.2,148.63,148.58,15.2]
[1721000744001,15.2,148.63,148.58,1.34580708]
[1721000744205,15.2,148.63,148.58,16.54580708]
[1721000745102,15.2,148.63,148.58,1.34580708]
[1721000745294,15.2,148.63,148.58,15.2]
[1721000745494,15.2,148.63,148.58,16.54580953]
[1721000746013,6.2894,148.67,148.59,20.0]
[1721000746170,16.3267,148.74,148.61,22.2387]
[1721000746376,15.2,148.72,148.67,15.2]
[1721000747798,16.3267,148.74,148.68,16.54513789]
[1721000748004,15.2,148.73,148.68,15.2]
[1721000748993,15.2,148.71,148.67,15.2]
[1721000749683,15.2,148.72,148.67,15.2]
[1721000749890,15.2,148.72,148.68,15.2]
[1721000750493,15.2,148.73,148.68,15.2]
[1721000752197,15.2,148.72,148.61,9.70436558]
[1721000752382,21.9244,148.72,148.62,21.34505473]
[1721000752578,15.2,148.71,148.67,15.2]
[1721000754101,15.2,148.73,148.68,15.2]
[1721000754987,23.0499,148.74,148.68,15.2]
[1721000755189,15.2,148.73,148.69,15.2]
[1721000755613,16.3267,148.74,148.69,15.2]
[1721000755841,31.5267,148.74,148.69,15.2]
[1721000756011,15.2,148.73,148.69,15.2]
[1721000757600,15.2,148.72,148.61,9.70436558]
[1721000757796,15.2,148.72,148.67,15.2]
[1721000757985,15.2,148.72,148.61,70.50436558]
[1721000757986,15.2,148.71,148.63,1.34509271]
[1721000758308,15.2,148.71,148.67,15.2]
[1721000758486,15.2,148.73,148.69,15.2]
[1721000760102,21.9236,148.73,148.68,15.2]
[1721000761390,21.9236,148.73,148.61,70.50436558]
[1721000761391,21.924,148.72,148.61,70.50436558]
[1721000761606,15.2,148.71,148.67,15.2]
[1721000762118,15.2,148.71,148.66,15.2]
[1721000763332,16.3267,148.74,148.62,45.0]
[1721000763515,15.946,148.68,148.6,6.99652225]
[1721000763822,31.146,148.68,148.64,15.2]
[1721000764194,31.146,148.68,148.6,6.99652225]
[1721000764721,31.146,148.68,148.64,15.2]
[1721000765099,15.946,148.68,148.65,15.2]
[1721000765294,31.146,148.68,148.63,15.2]
[1721000765500,31.146,148.68,148.6,6.99652225]
[1721000765716,15.2,148.67,148.62,15.2]
[1721000765916,15.2,148.67,148.6,6.99652225]
[1721000766218,15.2,148.66,148.57,7.5073]
[1721000766428,15.2,148.66,148.57,6.6604]
[1721000766599,15.2,148.65,148.6,15.2]
[1721000767405,15.2,148.65,148.58,6.99128142]
[1721000767714,15.2,148.65,148.6,15.2]
[1721000769429,15.2,148.64,148.6,15.2]
[1721000769605,15.2,148.61,148.58,6.99128142]
[1721000769805,31.7388,148.62,148.54,61.6469]
[1721000770118,31.7388,148.62,148.57,15.2]
[1721000770432,31.7388,148.62,148.58,15.2]
[1721000770605,31.7388,148.62,148.57,15.2]
[1721000771006,16.5388,148.62,148.58,16.54590294]
[1721000771310,16.5388,148.62,148.59,15.2]
[1721000773106,15.3507,148.67,148.61,15.2]
[1721000773321,30.5507,148.67,148.62,15.2]
[1721000774105,30.5507,148.67,148.55,6.99891754]
[1721000774106,15.3507,148.67,148.63,16.54552065]
[1721000774305,15.3507,148.67,148.64,15.2]
[1721000775833,15.3507,148.67,148.63,15.2]
[1721000777608,15.3507,148.67,148.64,15.2]
[1721000778206,16.3596,148.71,148.66,15.2]
[1721000778419,31.5596,148.71,148.61,60.8]
[1721000778618,15.2,148.7,148.66,15.2]
[1721000778803,31.5596,148.71,148.66,15.2]
[1721000779000,31.5596,148.71,148.63,1.34524212]
[1721000779001,31.5596,148.71,148.67,15.2]
[1721000779220,31.5596,148.71,148.69,15.2]
[1721000779221,16.3596,148.71,148.69,15.2]
[1721000779611,16.3596,148.71,148.67,15.2]
[1721000780121,16.3596,148.71,148.68,15.2]
[1721000780509,16.3596,148.71,148.69,15.2]
[1721000781018,16.3596,148.71,148.68,15.2]
[1721000782434,16.3596,148.71,148.67,15.2]
[1721000783719,16.3596,148.71,148.68,15.2]
[1721000783921,16.3596,148.71,148.62,45.0]